bitfinex/quotes_ETHUSD_20250715
["timestamp","ask_amount","ask_price","bid_price","bid_amount"]
[1752597926165,4.09087385,3060.0,3059.9,1e-08]
[1752597926500,7.09087385,3060.0,3059.9,1e-08]
[1752597926694,8.12674794,3060.0,3059.9,1e-08]
[1752597927562,8.67674794,3060.0,3059.9,1e-08]
[1752597927864,5.12674794,3060.0,3059.9,1e-08]
[1752597928178,3.26797385,3060.0,3059.9,1e-08]
[1752597929496,0.7885,3060.6,3059.9,1e-08]
[1752597929676,3.26786981,3060.1,3059.9,1e-08]
[1752597930200,3.26797385,3060.0,3059.9,1e-08]
[1752597930399,3.59477124,3060.0,3059.9,5.21000001]
[1752597930591,3.26797385,3060.0,3059.9,1e-08]
[1752597931099,4.02317385,3060.0,3059.9,1e-08]
[1752597931300,4.57317385,3060.0,3059.9,1e-08]
[1752597931613,7.57317385,3060.0,3059.9,1e-08]
[1752597932101,7.02317385,3060.0,3059.9,1e-08]
[1752597932312,8.37906419,3060.0,3059.9,1e-08]
[1752597933009,8.92906419,3060.0,3059.9,1e-08]
[1752597933298,14.14406419,3060.0,3059.9,1e-08]
[1752597933874,44.14406419,3060.0,3059.9,1e-08]
[1752597934478,4.0495353,3059.1,3059.0,1e-08]
[1752597934676,4.45448883,3059.1,3059.0,1e-08]
[1752597936020,4.0495353,3059.1,3059.0,1e-08]
[1752597937911,7.0495353,3059.1,3059.0,1e-08]
[1752597938283,12.2575353,3059.1,3059.0,1e-08]
[1752597938567,7.0495353,3059.1,3059.0,1e-08]
[1752597939158,3.2689353,3059.1,3059.0,1e-08]
[1752597939657,3.4321353,3059.1,3059.0,1e-08]
[1752597939817,0.1632,3059.1,3059.0,1e-08]
[1752597940016,0.1632,3059.1,3059.0,0.75320001]
[1752597940247,0.1632,3059.3,3059.0,0.75320001]
[1752597940453,0.1632,3059.3,3059.0,4.44077602]
[1752597940604,3.26854783,3059.5,3059.0,4.44077602]
[1752597940804,3.43174783,3059.5,3059.0,4.60397602]
[1752597941006,0.8298,3060.3,3059.1,3.2689353]
[1752597941242,0.8298,3060.3,3059.4,0.1632]
[1752597941243,0.1632,3060.1,3059.4,0.1632]
[1752597941544,0.1632,3060.1,3059.5,0.1632]
[1752597941751,3.26797385,3060.0,3059.5,0.1632]
[1752597942048,3.26797385,3060.0,3059.4,3.26860787]
[1752597942049,3.26789403,3060.1,3059.7,0.1632]
[1752597942410,0.002,3060.0,3059.7,0.1632]
[1752597942605,0.002,3060.0,3059.7,0.78181]
[1752597943345,0.002,3060.0,3059.9,0.1632]
[1752597943547,0.002,3060.0,3059.7,0.65129294]
[1752597943548,3.26829427,3059.7,3059.6,0.8149]
[1752597943908,3.2682108,3059.8,3059.6,0.8149]
[1752597944109,3.26829427,3059.7,3059.6,6.0179]
[1752597944731,3.26829427,3059.7,3059.6,5.203]
[1752597944934,3.26829427,3059.7,3059.2,0.8176]
[1752597945246,3.2687216,3059.3,3059.2,0.8176]
[1752597945449,6.2687216,3059.3,3059.2,0.8176]
[1752597945672,6.2689353,3059.1,3059.0,1e-08]
[1752597945958,3.0,3059.1,3059.0,5.20200001]
[1752597946249,6.2689353,3059.1,3059.0,5.36720001]
[1752597946634,6.2689353,3059.1,3059.0,0.16320001]
[1752597946834,6.2689353,3059.1,3059.0,5.36520001]
[1752597948356,0.70229005,3059.9,3059.0,5.98348001]
[1752597948527,3.0,3059.6,3059.0,5.85297043]
[1752597948727,3.0,3059.7,3059.6,0.1632]
[1752597948967,3.26810688,3059.9,3059.6,5.3642]
[1752597949146,3.0,3059.8,3059.6,5.201]
[1752597949322,0.002,3060.0,3059.6,5.201]
[1752597949546,0.002,3060.0,3059.7,0.1632]
[1752597950042,0.002,3060.0,3059.9,4.09828065]
[1752597950278,0.002,3060.0,3059.9,4.64828065]
[1752597950643,0.002,3060.0,3059.9,4.68096145]
[1752597950844,0.002,3060.0,3059.9,4.64828065]
[1752597951044,0.002,3060.0,3059.9,13.44978163]
[1752597951292,3.26867836,3061.3,3060.8,0.8302]
[1752597951487,0.002,3061.3,3060.9,5.203]
[1752597951643,3.002,3061.3,3060.9,5.203]
[1752597951848,3.002,3061.3,3060.8,0.8302]
[1752597951849,3.26675191,3061.2,3061.0,5.204]
[1752597952249,3.2686091,3061.3,3061.0,5.204]
[1752597952880,3.26675719,3061.2,3061.0,5.204]
[1752597953050,3.26701297,3060.9,3060.8,0.8302]
[1752597953246,0.002,3061.3,3060.8,0.8302]
[1752597953247,3.26694842,3061.0,3060.8,6.0352]
[1752597953446,3.26699418,3061.0,3060.8,6.0352]
[1752597953650,3.26701297,3060.9,3060.8,0.8302]
[1752597953872,3.26701297,3060.9,3060.8,5.204]
[1752597954256,3.26701297,3060.9,3060.5,0.8304]
[1752597954472,3.26690602,3061.1,3060.5,0.8304]
[1752597954473,3.26683687,3061.1,3060.6,5.203]
[1752597954874,0.002,3061.3,3060.7,0.03267226]
[1752597955049,0.002,3061.3,3060.8,0.8021]
[1752597955248,0.002,3061.3,3060.9,0.03267012]
[1752597955449,0.002,3061.3,3061.0,0.55]
[1752597955644,0.002,3061.3,3061.1,5.205]
[1752597956194,0.002,3061.3,3061.2,3.2666928]
[1752597956345,0.002,3061.3,3061.2,4.10375972]
[1752597956678,0.002,3061.3,3061.2,7.65375972]
[1752597956865,0.002,3061.3,3061.2,7.87076159]
[1752597957091,0.002,3061.3,3061.2,13.07476159]
[1752597957302,0.002,3061.3,3061.2,15.59034226]
[1752597958023,0.002,3061.3,3061.2,10.38634226]
[1752597958211,0.002,3061.3,3061.2,15.59234226]
[1752597958506,0.8171,3062.9,3061.2,15.59234226]
[1752597958507,0.70170213,3062.9,3062.4,3.26534795]
[1752597958721,3.26483798,3063.0,3062.5,5.24065306]
[1752597958865,3.26491454,3062.9,3062.5,5.24065306]
[1752597959070,3.2657002,3062.2,3061.9,8.599]
[1752597959320,3.26513606,3062.7,3061.9,8.599]
[1752597959519,3.26580814,3062.1,3062.0,5.211]
[1752597959701,3.91895148,3062.1,3061.9,7.845]
[1752597960014,3.26639185,3061.5,3061.2,1.00366879]
[1752597960171,3.91890824,3062.1,3061.5,0.1632]
[1752597960172,3.26592538,3062.0,3061.5,0.1632]
[1752597960376,3.26579574,3062.1,3061.6,5.24366266]
[1752597960692,3.26558356,3062.3,3062.0,0.754]
[1752597960895,0.65317525,3062.9,3062.2,0.1632]
[1752597961099,3.26515926,3062.7,3062.5,0.1632]
[1752597961272,3.26515926,3062.7,3062.6,5.21]
[1752597961613,3.26509289,3062.7,3062.6,5.21]
[1752597961909,3.2651995,3062.6,3062.5,0.1632]
[1752597962114,3.26573266,3062.1,3062.0,0.754]
[1752597962283,3.26580326,3062.1,3062.0,5.21]
[1752597962808,3.26506105,3062.8,3061.6,0.7902]
[1752597963016,3.26613641,3061.8,3061.7,5.209]
[1752597963243,3.26537975,3062.5,3061.7,5.209]
[1752597963373,3.26537975,3062.5,3061.8,5.209]
[1752597963574,0.32650611,3062.7,3061.8,5.209]
[1752597963575,3.26596512,3061.9,3061.8,5.209]
[1752597963813,3.26596512,3061.9,3061.6,0.82286266]
[1752597963814,3.26605744,3061.8,3061.6,0.7902]
[1752597964007,3.26615932,3061.7,3061.6,0.7902]
[1752597964216,3.26615932,3061.7,3061.6,5.206]
[1752597965114,0.002,3062.5,3061.6,5.206]
[1752597965281,3.26572899,3062.2,3061.7,5.205]
[1752597965477,0.002,3062.5,3061.7,5.205]
[1752597965683,0.002,3062.5,3061.8,4.10314503]
[1752597965994,3.26543964,3062.4,3061.8,4.10318284]
[1752597966193,3.26733991,3062.5,3061.9,3.2659394]
[1752597966393,0.002,3062.5,3062.0,3.2984932]
[1752597966594,0.002,3062.5,3062.1,5.203]
[1752597966924,0.002,3062.5,3061.8,0.8045]
[1752597966925,0.65524031,3062.5,3062.2,5.204]
[1752597967096,3.26550354,3062.4,3061.8,4.07054356]
[1752597967291,3.26541274,3062.4,3061.8,4.07054356]
[1752597967492,3.26555301,3062.3,3061.9,5.204]
[1752597967809,3.26733873,3062.5,3061.9,3.29853867]
[1752597968005,3.26733873,3062.5,3062.0,5.202]
[1752597968408,3.26559794,3062.3,3062.0,5.202]
[1752597968919,3.26568867,3062.2,3062.1,5.201]
[1752597969128,0.65329885,3062.3,3062.1,5.201]
[1752597969285,3.26562602,3062.2,3062.1,5.201]
[1752597969685,0.65329885,3062.3,3061.5,0.8202]
[1752597969883,3.2660024,3061.9,3061.6,5.2]
[1752597970111,0.47418587,3062.2,3061.5,0.8202]
[1752597970298,3.26598452,3061.9,3061.6,5.197]
[1752597970487,0.47418587,3062.2,3061.5,0.8202]
[1752597970686,0.47418587,3062.2,3061.2,0.24966879]
[1752597970687,3.26551938,3062.3,3061.6,5.196]
[1752597970895,3.26614974,3061.8,3061.6,5.196]
[1752597971190,3.26586099,3062.0,3061.4,3.26647685]
[1752597971390,3.26595432,3061.9,3061.4,3.26647685]
[1752597971633,3.26595432,3061.9,3061.5,5.195]
[1752597971938,3.26599871,3061.9,3061.5,5.195]
[1752597972086,3.26599871,3061.9,3061.7,0.1632]
[1752597972435,0.002,3062.5,3061.8,0.78]
[1752597972636,3.2654646,3062.4,3061.9,5.192]
[1752597972792,0.002,3062.5,3061.9,5.192]
[1752597973126,3.26579271,3062.1,3062.0,5.192]
[1752597973321,3.26566601,3062.2,3062.0,5.192]
[1752597973489,0.002,3062.5,3061.8,0.78]
[1752597973821,3.26625254,3061.7,3061.2,3.24966879]
[1752597974129,0.7798,3062.2,3061.3,5.19]
[1752597974328,0.7798,3062.2,3061.4,5.191]
[1752597974622,4.04545324,3062.2,3061.4,5.191]
[1752597974791,0.7798,3062.2,3061.5,5.191]
[1752597974992,3.26627262,3061.6,3061.5,5.191]
[1752597975391,3.26608933,3061.8,3061.5,5.19]
[1752597975595,3.26615932,3061.7,3061.2,3.0]
[1752597975795,3.26627696,3061.6,3061.3,5.22266586]
[1752597976307,3.26640851,3061.5,3061.3,5.19]
[1752597976629,3.26640851,3061.5,3061.2,0.24652087]
[1752597976800,0.7798,3062.2,3061.3,5.187]
[1752597977002,3.26583932,3062.0,3061.3,5.187]
[1752597977335,3.26647938,3061.4,3061.3,5.187]
[1752597978120,3.26641222,3061.5,3061.3,5.187]
[1752597978339,3.26628202,3061.6,3061.3,5.187]
[1752597978340,3.26647938,3061.4,3061.3,5.187]
[1752597978691,3.26658609,3061.3,3061.2,0.24555234]
[1752597978946,0.32658393,3061.9,3061.2,5.186]
[1752597979100,3.26522961,3062.6,3061.1,0.7964]
[1752597979101,3.26653151,3061.4,3061.1,0.7964]
[1752597979442,3.26653151,3061.4,3061.3,5.183]
[1752597979597,3.26637941,3061.5,3061.3,5.183]
[1752597980006,3.26631936,3061.6,3061.3,5.183]
[1752597980195,3.26545226,3062.4,3061.3,5.183]
[1752597980527,3.26667847,3061.3,3061.1,0.7964]
[1752597980709,3.26667847,3061.3,3061.2,5.179]
[1752597981543,3.26627826,3061.6,3061.2,5.178]
[1752597981748,3.26583932,3062.0,3060.9,7.843]
[1752597981901,3.26690623,3061.0,3060.9,7.843]
[1752597982097,3.26690623,3061.0,3060.9,13.021]
[1752597982514,3.26690623,3061.0,3060.9,7.843]
[1752597982829,3.26690623,3061.0,3060.9,13.021]
[1752597983266,3.26690623,3061.0,3060.9,7.843]
[1752597983397,4.00099742,3061.0,3060.9,13.019]
[1752597983795,4.00099742,3061.0,3060.9,13.018]
[1752597984042,4.00099742,3061.0,3060.1,0.8168]
[1752597984043,3.26701876,3060.9,3060.1,0.8168]
[1752597984334,3.26701876,3060.9,3060.3,0.1632]
[1752597984335,3.26754672,3060.4,3060.3,0.1632]
[1752597984517,3.26754672,3060.4,3060.3,5.3382]
[1752597984926,3.26743422,3060.6,3060.3,5.3382]
[1752597985113,3.26745015,3060.5,3060.3,5.3382]
[1752597985429,3.26754672,3060.4,3060.3,5.3382]
[1752597985636,3.26754672,3060.4,3060.3,5.3352]
[1752597985794,3.26748332,3060.5,3060.3,5.3352]
[1752597986001,3.26736256,3060.6,3060.3,5.3352]
[1752597986002,3.26740184,3060.6,3060.3,5.3352]
[1752597986230,3.43028344,3060.9,3060.3,5.9504]
[1752597986533,3.2666928,3061.2,3060.5,0.1632]
[1752597986743,3.26729024,3060.7,3060.4,5.172]
[1752597986897,3.26737008,3060.6,3060.5,5.172]
[1752597987115,3.26726309,3060.7,3060.6,0.1632]
[1752597987536,3.26726309,3060.7,3060.1,0.8168]
[1752597987537,3.26775989,3060.3,3060.1,0.8168]
[1752597987716,3.26775989,3060.3,3060.2,0.1632]
[1752597987717,3.26765349,3060.3,3060.2,0.1632]
[1752597987916,4.03825349,3060.3,3059.2,0.7863]
[1752597988115,0.1632,3059.9,3059.4,3.1632]
[1752597988334,3.2681456,3059.9,3059.4,4.19252853]
[1752597988538,3.26801628,3060.0,3059.7,0.1632]
[1752597988734,3.2673332,3060.6,3059.8,5.9643]
[1752597988944,3.26792854,3060.1,3060.0,0.1632]
[1752597989234,3.26757708,3060.4,3060.0,0.1632]
[1752597989435,3.26768848,3060.3,3060.1,5.177]
[1752597989629,3.26758359,3060.4,3060.1,5.177]
[1752597989854,0.9338,3060.7,3060.2,0.1632]
[1752597990057,0.1632,3060.7,3060.2,0.1632]
[1752597990257,3.26750003,3060.5,3060.4,0.1632]
[1752597990432,3.26743996,3060.5,3060.4,0.1632]
[1752597990639,3.26743996,3060.5,3060.4,5.3382]
[1752597991546,3.26790451,3060.1,3059.8,0.7863]
[1752597991861,3.26777868,3060.2,3060.1,0.1632]
[1752597992346,4.05137868,3060.2,3060.1,0.1632]
[1752597992525,3.26777868,3060.2,3060.1,5.3372]
[1752597993155,3.26776027,3060.2,3060.1,6.1392]
[1752597993322,3.26776027,3060.2,3060.1,0.1632]
[1752597993530,3.26776027,3060.2,3060.1,5.3352]
[1752597993728,3.26776027,3060.2,3060.1,0.1632]
[1752597993925,3.26776027,3060.2,3059.4,3.24709239]
[1752597993926,3.26839346,3059.7,3059.5,0.802]
[1752597994245,4.70350673,3060.2,3059.5,4.07049401]
[1752597994246,3.26802689,3060.0,3059.5,4.07049401]
[1752597994446,0.7822,3060.6,3059.6,8.43932058]
[1752597994639,3.26770576,3060.3,3059.7,3.26819219]
[1752597994839,3.26770576,3060.3,3059.8,3.26817672]
[1752597995049,3.26759153,3060.4,3059.8,3.26817672]
[1752597995250,3.26767473,3060.3,3059.7,4.5192197]
[1752597995630,3.26767473,3060.3,3059.5,4.07047241]
[1752597995631,0.7822,3060.6,3059.5,0.802]
[1752597995831,3.26835376,3059.7,3059.4,0.24709239]
[1752597996040,3.26835376,3059.7,3059.5,5.17]
[1752597996363,0.8233,3060.5,3059.6,3.26833664]
[1752597996658,3.26782312,3060.2,3059.8,0.8225]
[1752597996838,3.26782312,3060.2,3059.9,5.171]
[1752597997240,3.26768681,3060.3,3059.9,5.171]
[1752597997440,3.26787854,3060.1,3059.9,5.171]
[1752597997637,3.26765349,3060.3,3060.0,5.171]
[1752597997837,3.26777136,3060.2,3060.0,5.171]
[1752597998088,3.26784684,3060.2,3060.0,5.171]
[1752597998363,3.26784684,3060.2,3059.1,3.001]
[1752597998364,3.26857941,3059.5,3059.1,0.7955]
[1752597998573,3.26857941,3059.5,3059.2,5.171]
[1752597998772,3.26866352,3059.4,3059.2,5.171]
[1752597998946,3.26866352,3059.4,3059.2,5.42117169]
[1752597999578,3.26866352,3059.4,3059.3,5.178]
[1752597999761,0.7675,3059.9,3059.1,0.7955]
[1752598000071,3.26882845,3059.2,3059.1,0.001]
[1752598000370,0.8182,3059.2,3059.1,0.001]
[1752598000670,3.26882845,3059.2,3059.1,5.192]
[1752598000852,3.26878297,3059.3,3059.1,5.192]
[1752598001236,3.2687261,3059.3,3059.1,0.001]
[1752598001436,3.2687261,3059.3,3059.2,5.19]
[1752598001971,3.2686643,3059.4,3059.2,5.19]
[1752598002569,3.2687216,3059.3,3059.2,5.19]
[1752598004058,3.26882845,3059.2,3059.1,0.001]
[1752598004248,3.26904217,3059.0,3058.9,1e-08]
[1752598005898,3.43224217,3059.0,3058.9,1e-08]
[1752598007367,3.43224217,3059.0,3058.9,0.00100001]
[1752598007562,0.8306,3059.5,3058.9,0.00100001]
[1752598007765,0.38306,3059.4,3058.9,0.00100001]
[1752598007936,0.1632,3059.4,3058.9,0.16420001]
[1752598008272,3.43224217,3059.0,3058.9,0.00100001]
[1752598008874,3.2687838,3059.3,3058.9,0.00100001]
[1752598009045,3.4318852,3059.4,3058.9,5.34720001]
[1752598009246,3.26855986,3059.5,3058.9,6.15335555]
[1752598009575,3.26855986,3059.5,3059.1,0.1632]
[1752598009754,3.26861476,3059.4,3059.1,0.1632]
[1752598009951,3.26850792,3059.5,3059.1,0.1632]
[1752598010275,3.26861476,3059.4,3059.1,0.1632]
[1752598010462,3.26877861,3059.3,3059.1,0.1632]
[1752598010658,3.26866057,3059.4,3059.1,0.1632]
[1752598010846,3.26851857,3059.5,3059.1,0.1632]
[1752598011054,3.2686162,3059.4,3059.1,0.1632]
[1752598011373,3.2687216,3059.3,3059.1,0.1632]
[1752598011758,3.26882845,3059.2,3059.1,0.1632]
[1752598011959,3.9225839,3059.2,3059.1,5.181]
[1752598012150,3.26904217,3059.0,3058.9,0.00100001]
[1752598012474,3.43224217,3059.0,3058.9,0.00100001]
[1752598013495,3.2697904,3058.3,3057.8,0.001]
[1752598013699,0.1632,3058.5,3058.0,5.3452]
[1752598013895,3.4328359,3058.5,3058.0,5.3452]
[1752598014197,7.04995847,3059.1,3058.0,6.73329238]
[1752598014198,0.781,3059.1,3058.0,6.73329238]
[1752598014361,3.26927473,3058.8,3058.4,0.1632]
[1752598014560,0.9442,3059.1,3058.6,0.1632]
[1752598014793,3.26910783,3059.0,3058.6,0.1632]
[1752598014978,3.2692183,3058.9,3058.6,0.1632]
[1752598015379,3.26934029,3058.8,3058.6,0.1632]
[1752598015597,3.26920302,3058.9,3058.6,0.1632]
[1752598015799,3.26909368,3059.0,3058.6,0.1632]
[1752598016297,3.26933461,3058.8,3058.6,0.1632]
[1752598016686,3.26919806,3058.9,3058.6,0.1632]
[1752598016889,3.43215725,3059.1,3058.6,0.1632]
[1752598016890,3.2693273,3058.8,3058.6,0.1632]
[1752598017086,0.1632,3059.1,3058.6,0.1632]
[1752598017302,0.1632,3059.1,3058.7,0.03269362]
[1752598017501,3.26882329,3059.3,3058.9,0.1632]
[1752598017701,3.26889958,3059.2,3059.0,5.178]
[1752598017905,3.2689353,3059.1,3059.0,5.178]
[1752598018780,3.26893219,3059.2,3059.0,5.178]
[1752598020015,3.2689353,3059.1,3059.0,5.178]
[1752598020532,3.26904217,3059.0,3058.9,0.1632]
[1752598020736,0.65379775,3059.0,3058.7,0.1632]
[1752598020953,3.43224217,3059.0,3058.9,5.174]
[1752598021133,3.26904217,3059.0,3058.9,5.174]
[1752598021479,3.26922856,3058.9,3058.7,0.1632]
[1752598021882,3.26922856,3058.9,3058.8,5.174]
[1752598022494,3.26925591,3058.8,3058.7,0.1632]
[1752598022678,3.26925591,3058.8,3058.2,0.7614]
[1752598022883,0.1632,3058.5,3058.0,0.9246]
[1752598023115,3.2699384,3058.2,3058.1,5.174]
[1752598023601,3.26973498,3058.4,3058.1,5.174]
[1752598023806,0.1632,3058.7,3058.1,5.3372]
[1752598024206,3.26980362,3058.3,3058.1,5.3372]
[1752598024599,3.26989732,3058.2,3058.1,5.3372]
[1752598024793,3.26989732,3058.2,3058.1,5.174]
[1752598024992,3.27021812,3057.9,3057.8,0.001]
[1752598025516,3.92425143,3057.9,3057.8,0.001]
[1752598025716,3.92425143,3057.9,3057.8,5.175]
[1752598025927,3.92425143,3057.9,3057.8,0.001]
[1752598026698,3.27018796,3058.0,3057.8,0.001]
[1752598027029,3.27021812,3057.9,3057.8,0.001]
[1752598027891,0.7844,3059.0,3057.9,0.7684]
[1752598028098,3.26959944,3058.5,3058.0,5.20670111]
[1752598028548,3.26923087,3058.9,3058.0,8.47679858]
[1752598028708,3.67457847,3058.9,3058.1,3.27000425]
[1752598029220,0.4053476,3058.9,3058.3,3.26976692]
[1752598029420,3.67453031,3058.9,3058.4,5.174]
[1752598029626,0.7844,3059.0,3058.4,5.174]
[1752598029918,3.2691135,3059.0,3058.5,0.7959]
[1752598030227,3.26905169,3059.0,3058.5,0.7959]
[1752598030426,3.26922561,3058.9,3058.5,0.7959]
[1752598030629,1.15682256,3058.8,3058.0,0.001]
[1752598030928,0.8297,3058.8,3058.3,5.174]
[1752598031218,3.26950425,3058.6,3058.3,5.174]
[1752598031424,4.09897933,3058.8,3058.3,5.174]
[1752598031425,3.26960008,3058.5,3058.3,5.174]
[1752598031628,0.65389687,3058.5,3058.3,5.174]
[1752598031800,3.92355468,3058.5,3058.3,5.174]
[1752598032804,0.65389687,3058.5,3058.0,0.001]
[1752598033109,4.09970425,3058.1,3058.0,0.001]
[1752598034547,3.27000425,3058.1,3058.0,0.001]
[1752598034754,4.00591473,3058.1,3058.0,0.001]
[1752598034903,0.73591048,3058.1,3058.0,0.001]
[1752598035106,0.002,3059.0,3058.1,0.8116]
[1752598035408,0.002,3059.0,3058.7,0.8116]
[1752598035607,0.002,3059.0,3058.8,5.174]
[1752598035910,0.002,3059.0,3058.9,6.30184053]
[1752598036131,0.002,3059.0,3058.9,7.11344053]
[1752598036438,0.002,3059.0,3058.9,13.32901897]
[1752598036937,0.002,3059.0,3058.9,8.11901897]
[1752598037145,0.002,3059.0,3058.9,13.32801897]
[1752598037515,0.002,3059.0,3058.9,13.32701897]
[1752598037720,0.002,3059.0,3058.9,8.11901897]
[1752598037916,0.002,3059.0,3058.9,14.04021897]
[1752598038844,0.002,3059.0,3058.9,14.03821897]
[1752598039343,0.002,3059.0,3058.9,14.28327162]
[1752598039543,0.002,3060.3,3059.8,0.7829]
[1752598039840,0.002,3060.3,3060.2,4.21386027]
[1752598040038,0.002,3060.3,3060.2,9.41986027]
[1752598040243,0.002,3060.3,3060.2,14.80369042]
[1752598040442,0.002,3060.3,3060.2,23.60897477]
[1752598040804,0.002,3060.3,3060.2,15.35469042]
[1752598041820,0.002,3060.3,3060.2,15.35169042]
[1752598042027,0.002,3060.3,3060.2,10.14769042]
[1752598042225,0.002,3060.3,3060.2,15.35069042]
[1752598042912,0.002,3060.3,3060.2,10.14769042]
[1752598043112,0.002,3060.3,3060.2,15.35069042]
[1752598043320,0.002,3060.3,3060.2,14.79769042]
[1752598043853,0.002,3060.3,3060.2,6.1461]
[1752598044344,0.002,3060.3,3060.2,4.24653787]
[1752598044536,0.002,3060.3,3060.2,9.44553787]
[1752598044842,0.002,3060.3,3060.2,4.21386027]
[1752598045046,0.002,3060.3,3060.2,9.40986027]
[1752598045418,0.002,3060.3,3060.2,6.1421]
[1752598045618,0.002,3060.3,3060.2,0.9787776]
[1752598045819,0.002,3060.3,3060.0,7.85]
[1752598046050,0.002,3060.3,3060.1,5.195]
[1752598046242,0.002,3060.3,3060.0,8.0132]
[1752598046441,0.002,3060.3,3060.1,5.195]
[1752598046755,3.26967075,3060.3,3060.1,5.195]
[1752598046937,3.26965349,3060.3,3060.2,5.194]
[1752598047141,3.99972623,3060.3,3060.2,5.194]
[1752598047339,3.99972623,3060.3,3060.0,7.85]
[1752598047340,3.26776027,3060.2,3060.0,7.85]
[1752598047540,0.73207274,3060.3,3060.0,7.85]
[1752598047541,3.26786706,3060.1,3060.0,7.85]
[1752598047852,3.26786706,3060.1,3060.0,13.042]
[1752598048430,3.26786706,3060.1,3060.0,7.85]
[1752598048632,3.26786706,3060.1,3060.0,13.042]
[1752598048944,3.26786706,3060.1,3060.0,7.85]
[1752598049143,3.26780502,3060.2,3060.0,13.039]
[1752598049348,0.7430648,3060.2,3060.0,13.039]
[1752598049657,3.43286032,3060.3,3060.0,13.039]
[1752598049850,0.002,3060.3,3060.1,5.189]
[1752598050025,0.002,3060.3,3060.2,3.43096027]
[1752598050353,0.002,3060.3,3060.2,4.19506027]
[1752598050954,1e-08,3060.3,3060.2,7.74506027]
[1752598051159,1e-08,3060.3,3060.2,14.65615272]
[1752598052666,0.002,3061.3,3060.3,2.7261]
[1752598052834,0.002,3061.3,3061.2,12.83607715]
[1752598053015,0.002,3061.3,3061.2,7.5807928]
[1752598053221,0.002,3061.3,3061.2,14.18723201]
[1752598053969,0.002,3061.3,3061.2,14.18623201]
[1752598054124,0.002,3061.3,3061.2,8.44223201]
[1752598054458,0.002,3061.3,3061.2,13.63823201]
[1752598054760,0.002,3061.3,3061.2,8.44223201]
[1752598055064,0.002,3061.3,3061.2,13.63623201]
[1752598055569,0.002,3061.3,3061.2,13.63523201]
[1752598056421,0.002,3061.3,3061.2,8.44223201]
[1752598056623,0.002,3061.3,3061.2,13.63223201]
[1752598056933,0.002,3061.3,3061.2,13.88349847]
[1752598057336,0.002,3061.3,3061.2,14.43349847]
[1752598060438,0.002,3062.5,3061.6,3.816266]
[1752598060640,0.002,3062.5,3061.6,26.66217727]
[1752598060857,0.002,3062.5,3061.6,26.62951461]
[1752598061054,3.26732413,3062.5,3061.6,20.98643026]
[1752598061255,3.2655572,3062.3,3061.6,20.98643026]
[1752598061568,3.26549954,3062.4,3061.6,20.98643026]
[1752598061769,3.2655519,3062.3,3061.6,20.98643026]
[1752598062167,0.002,3062.5,3061.6,20.98643026]
[1752598062330,3.26731179,3062.5,3061.6,20.98643026]
[1752598063033,3.26740401,3062.5,3061.6,21.53643026]
[1752598063262,0.002,3062.5,3061.6,21.53643026]
[1752598063663,0.002,3062.5,3062.4,3.26541274]
[1752598063869,0.002,3062.5,3062.4,8.63926686]
[1752598064050,0.002,3062.5,3062.4,8.60661274]
[1752598064646,0.002,3062.5,3062.4,0.1632]
[1752598064852,0.002,3062.5,3062.4,5.3402]
[1752598065374,0.002,3063.1,3062.9,4.58977968]
[1752598065577,0.002,3063.1,3062.9,15.11380171]
[1752598065781,0.002,3063.1,3062.9,12.78577968]
[1752598065938,0.002,3063.1,3062.9,4.3249]
[1752598066271,0.002,3063.1,3062.4,0.53402]
[1752598066272,3.2651995,3062.6,3062.4,0.53402]
[1752598066475,3.26550096,3062.4,3062.0,0.8132]
[1752598066665,0.7551,3062.8,3062.1,5.198]
[1752598067173,0.7551,3062.8,3062.0,1.05368989]
[1752598067174,3.26573266,3062.1,3062.0,0.24048989]
[1752598067379,3.26615932,3061.7,3061.2,0.8262]
[1752598067582,3.26690623,3061.0,3060.9,0.8262]
[1752598067765,0.7673,3062.1,3060.9,5.203]
[1752598067977,3.2665506,3061.4,3061.0,0.55296906]
[1752598068297,3.26655445,3061.4,3061.1,5.328]
[1752598068495,3.26679951,3061.1,3061.0,0.24985453]
[1752598068697,3.26679951,3061.1,3061.0,5.57685453]
[1752598068990,3.2665729,3061.4,3061.0,5.88468545]
[1752598069195,3.2664163,3061.5,3061.1,0.03266799]
[1752598069492,4.04297816,3061.7,3061.1,0.03266799]
[1752598069493,3.26649687,3061.4,3061.2,5.324]
[1752598069646,3.26638738,3061.5,3061.2,5.324]
[1752598069867,0.7723,3062.0,3061.2,5.93974888]
[1752598070069,0.7723,3062.0,3061.3,0.03266586]
[1752598070070,4.03819612,3062.0,3061.3,0.03266586]
[1752598070299,3.26644632,3061.5,3061.4,5.322]
[1752598070689,3.26666488,3061.3,3061.1,0.03266799]
[1752598071023,3.26658609,3061.3,3061.2,5.321]
[1752598072510,3.26658609,3061.3,3061.0,0.2453421]
[1752598072511,3.26679951,3061.1,3061.0,0.2453421]
[1752598072661,3.26679951,3061.1,3061.0,5.318]
[1752598073617,3.26730427,3060.7,3060.3,3.0]
[1752598073774,3.26741002,3060.6,3060.4,5.311]
[1752598073975,0.8319,3061.3,3060.4,5.55972429]
[1752598074200,0.8319,3061.3,3060.5,0.03267439]
[1752598074501,0.8319,3061.3,3060.5,0.59191426]
[1752598074698,3.26743996,3060.5,3060.4,5.55972429]
[1752598074865,3.26743996,3060.5,3060.4,5.55672429]
[1752598075069,4.09854318,3061.3,3060.4,5.55672429]
[1752598075265,0.1632,3061.0,3060.4,5.71992429]
[1752598075471,3.2671712,3060.8,3060.4,5.71992429]
[1752598075981,3.2674097,3060.6,3060.4,5.71992429]
[1752598076181,0.1632,3061.0,3060.4,7.16171437]
[1752598076386,3.26694507,3061.0,3060.5,0.03267439]
[1752598076687,3.26694507,3061.0,3060.8,0.1632]